[Event "EIRCC 2019"]
[Site "Tallinn"]
[Date "2019.12.05"]
[Round "4.20"]
[White "Chukavin, Kirill"]
[Black "Postny, Evgeny"]
[Result "1/2-1/2"]
[ECO "C47"]
[WhiteElo "2290"]
[BlackElo "2598"]
[Annotator "ChessBase"]
[PlyCount "106"]
[EventDate "2019.12.05"]
[EventType "swiss"]
[EventCountry "EST"]
[SourceTitle "playchess.com"]
[Source "ChessBase"]
[SourceQuality "1"]
[TimeControl "900+10"]

1. e4 {[%emt 0:00:00]} e5 {[%emt 0:00:00]} 2. Nf3 {[%emt 0:00:00]} Nc6 {[%emt 0:00:00]} 3. Nc3 {[%emt 0:00:00]} Nf6 {[%emt 0:00:00]} 4. Be2 {[%emt 0:00:00]} Bd6 {[%emt 0:00:15]} 5. d4 {[%emt 0:00:39]} exd4 {[%emt 0:00:19]} 6. Nxd4 {[%emt 0:00:06]} Nxd4 {[%emt 0:00:58]} 7. Qxd4 {[%emt 0:00:03]} Qe7 {[%emt 0:00:10]} 8. Bg5 {[%emt 0:02:42]} Be5 {[%emt 0:00:05]} 9. Qc4 {[%emt 0:00:21]} Qe6 {[%emt 0:01:09]} 10. O-O-O {[%emt 0:02:45]} Qxc4 {[%emt 0:00:36]} 11. Bxc4 {[%emt 0:00:02]} h6 {[%emt 0:00:58]} 12. Bxf6 {[%emt 0:00:38]} Bxf6 {[%emt 0:00:09]} 13. e5 {[%emt 0:00:52]} Bg5+ {[%emt 0:00:04]} 14. Kb1 {[%emt 0:00:01]} a6 {[%emt 0:02:46]} 15. f4 {[%emt 0:00:37]} Bd8 {[%emt 0:00:25]} 16. Rhe1 {[%emt 0:00:41]} b5 {[%emt 0:00:11]} 17. Bd5 {[%emt 0:00:17]} Rb8 {[%emt 0:00:03]} 18. Ne4 {[%emt 0:00:50]} Rb6 {[%emt 0:01:28]} 19. Rd3 {[%emt 0:01:06]} O-O {[%emt 0:00:24]} 20. Bb3 {[%emt 0:01:49]} Re8 {[%emt 0:00:30]} 21. Red1 {[%emt 0:00:53]} a5 {[%emt 0:02:43]} 22. a4 {[%emt 0:01:42]} Be7 {[%emt 0:01:05]} 23. axb5 {[%emt 0:00:31]} Rxb5 {[%emt 0:00:02]} 24. Nc3 {[%emt 0:00:50]} Rc5 {[%emt 0:00:29]} 25. Rd5 {[%emt 0:00:20]} Rxd5 {[%emt 0:00:45]} 26. Rxd5 {[%emt 0:00:14]} Bb4 {[%emt 0:00:02]} 27. Nb5 {[%emt 0:00:40]} c6 {[%emt 0:01:05]} 28. Nd6 {[%emt 0:00:01]} cxd5 {[%emt 0:00:10]} 29. Nxe8 {[%emt 0:00:02]} Bb7 {[%emt 0:00:23]} 30. Nc7 {[%emt 0:00:33]} d4 {[%emt 0:00:04]} 31. Bd5 {[%emt 0:00:03]} Bc6 {[%emt 0:01:00]} 32. Bxc6 {[%emt 0:00:33]} dxc6 {[%emt 0:00:02]} 33. Ka2 {[%emt 0:00:07]} Bd2 {[%emt 0:00:26]} 34. g3 {[%emt 0:00:07]} Be3 {[%emt 0:00:02]} 35. e6 {[%emt 0:00:29]} Kf8 {[%emt 0:00:35]} 36. exf7 {[%emt 0:00:02]} Kxf7 {[%emt 0:00:02]} 37. Kb3 {[%emt 0:00:21]} Bg1 {[%emt 0:00:03]} 38. h3 {[%emt 0:00:02]} Bh2 {[%emt 0:00:02]} 39. f5 {[%emt 0:00:17]} Bxg3 {[%emt 0:00:05]} 40. Ne6 {[%emt 0:00:01]} Be5 {[%emt 0:00:16]} 41. Kc4 {[%emt 0:00:15]} Kf6 {[%emt 0:00:07]} 42. Nd8 {[%emt 0:00:11]} Kxf5 {[%emt 0:00:11]} 43. Nxc6 {[%emt 0:00:01]} Ke4 {[%emt 0:01:40]} 44. Nxa5 {[%emt 0:00:02]} g5 {[%emt 0:00:10]} 45. Nc6 {[%emt 0:00:14]} h5 {[%emt 0:00:09]} 46. Nxe5 {[%emt 0:00:26]} Kxe5 {[%emt 0:00:01]} 47. Kd3 {[%emt 0:00:12]} Kf4 {[%emt 0:00:15]} 48. b4 {[%emt 0:00:10]} g4 {[%emt 0:00:03]} 49. hxg4 {[%emt 0:00:07]} hxg4 {[%emt 0:00:06]} 50. b5 {[%emt 0:00:09]} Ke5 {[%emt 0:00:03]} 51. b6 {[%emt 0:00:04]} Kd6 {[%emt 0:00:02]} 52. Kxd4 {[%emt 0:00:12]} Kc6 {[%emt 0:00:01]} 53. Ke4 {[%emt 0:00:07]} Kxb6 {[%emt 0:00:01]} 1/2-1/2

[Event "EIRCC 2019"]
[Site "Tallinn"]
[Date "2019.12.05"]
[Round "4.21"]
[White "Aleksandrov, Aleksej"]
[Black "Troyke, Christian"]
[Result "1-0"]
[ECO "B06"]
[WhiteElo "2576"]
[BlackElo "2322"]
[Annotator "ChessBase"]
[PlyCount "85"]
[EventDate "2019.12.05"]
[EventType "swiss"]
[EventCountry "EST"]
[SourceTitle "playchess.com"]
[Source "ChessBase"]
[SourceQuality "1"]
[TimeControl "900+10"]

1. d4 {[%emt 0:00:00]} g6 {[%emt 0:00:00]} 2. e4 {[%emt 0:00:00]} Bg7 {[%emt 0:00:00]} 3. Nc3 {[%emt 0:00:00]} c5 {[%emt 0:00:00]} 4. d5 {[%emt 0:00:00]} d6 {[%emt 0:00:01]} 5. Nf3 {[%emt 0:00:07]} Nf6 {[%emt 0:00:03]} 6. Be2 {[%emt 0:00:19]} O-O {[%emt 0:00:03]} 7. O-O {[%emt 0:00:02]} Na6 {[%emt 0:00:26]} 8. Bf4 {[%emt 0:00:55]} Nc7 {[%emt 0:00:20]} 9. a4 {[%emt 0:00:06]} Re8 {[%emt 0:01:12]} 10. h3 {[%emt 0:00:25]} b6 {[%emt 0:00:01]} 11. Re1 {[%emt 0:00:35]} Bb7 {[%emt 0:00:02]} 12. Bc4 {[%emt 0:00:12]} a6 {[%emt 0:00:26]} 13. Qd3 {[%emt 0:03:04]} e6 {[%emt 0:03:34]} 14. dxe6 {[%emt 0:00:14]} Nxe6 {[%emt 0:00:02]} 15. Bxd6 {[%emt 0:02:44]} Nd4 {[%emt 0:00:06]} 16. Bxf7+ {[%emt 0:01:11]} Kxf7 {[%emt 0:01:30]} 17. Qc4+ {[%emt 0:03:44]} Nd5 {[%emt 0:01:15]} 18. Bg3 {[%emt 0:00:21]} Nxf3+ {[%emt 0:00:44]} 19. gxf3 {[%emt 0:00:02]} Bxc3 {[%emt 0:00:03]} 20. bxc3 {[%emt 0:00:08]} Kg7 {[%emt 0:01:27]} 21. Red1 {[%emt 0:02:00]} Qf6 {[%emt 0:01:29]} 22. exd5 {[%emt 0:00:03]} Qxf3 {[%emt 0:00:05]} 23. Qg4 {[%emt 0:02:07]} Bxd5 {[%emt 0:01:51]} 24. Qxf3 {[%emt 0:00:19]} Bxf3 {[%emt 0:00:02]} 25. Rd3 {[%emt 0:00:04]} Be4 {[%emt 0:00:23]} 26. Rd7+ {[%emt 0:00:01]} Kg8 {[%emt 0:00:51]} 27. Bh4 {[%emt 0:00:03]} Re6 {[%emt 0:00:27]} 28. Bd8 {[%emt 0:00:16]} Bxc2 {[%emt 0:00:44]} 29. f3 {[%emt 0:00:08]} Bf5 {[%emt 0:00:06]} 30. Rad1 {[%emt 0:00:04]} Bxh3 {[%emt 0:00:18]} 31. Rb7 {[%emt 0:00:08]} b5 {[%emt 0:00:27]} 32. Kf2 {[%emt 0:00:07]} bxa4 {[%emt 0:00:13]} 33. Rdd7 {[%emt 0:00:02]} Bf5 {[%emt 0:00:55]} 34. Rg7+ {[%emt 0:00:14]} Kf8 {[%emt 0:00:24]} 35. Rxh7 {[%emt 0:00:09]} Kg8 {[%emt 0:00:05]} 36. Rhg7+ {[%emt 0:00:13]} Kf8 {[%emt 0:00:01]} 37. Bg5 {[%emt 0:00:17]} Rb6 {[%emt 0:00:26]} 38. Rbf7+ {[%emt 0:00:10]} Ke8 {[%emt 0:00:01]} 39. Re7+ {[%emt 0:00:01]} Kf8 {[%emt 0:00:09]} 40. Rh7 {[%emt 0:00:05]} Kg8 {[%emt 0:00:13]} 41. Reg7+ {[%emt 0:00:01]} Kf8 {[%emt 0:00:01]} 42. Be7+ {[%emt 0:00:04]} Ke8 {[%emt 0:00:04]} 43. Bxc5 {[%emt 0:00:13]} 1-0

[Event "EIRCC 2019"]
[Site "Tallinn"]
[Date "2019.12.05"]
[Round "4.22"]
[White "Stupak, Kirill"]
[Black "Heinzel, Olaf"]
[Result "1-0"]
[ECO "A45"]
[WhiteElo "2552"]
[BlackElo "2269"]
[Annotator "ChessBase"]
[PlyCount "79"]
[EventDate "2019.12.05"]
[EventType "swiss"]
[EventCountry "EST"]
[SourceTitle "playchess.com"]
[Source "ChessBase"]
[SourceQuality "1"]
[TimeControl "900+10"]

1. d4 {[%emt 0:00:00]} Nf6 {[%emt 0:00:00]} 2. g3 {[%emt 0:00:00]} d5 {[%emt 0:00:01]} 3. Nf3 {[%emt 0:00:00]} c6 {[%emt 0:00:04]} 4. Bg2 {[%emt 0:00:00]} Bf5 {[%emt 0:00:01]} 5. O-O {[%emt 0:00:00]} e6 {[%emt 0:00:03]} 6. c4 {[%emt 0:00:00]} h6 {[%emt 0:00:03]} 7. Nc3 {[%emt 0:00:00]} Nbd7 {[%emt 0:00:12]} 8. Qb3 {[%emt 0:00:01]} Qb6 {[%emt 0:00:03]} 9. c5 {[%emt 0:00:01]} Qc7 {[%emt 0:00:01]} 10. Bf4 {[%emt 0:00:01]} Qc8 {[%emt 0:00:01]} 11. Nd2 {[%emt 0:00:01]} Be7 {[%emt 0:00:04]} 12. e4 {[%emt 0:00:01]} dxe4 {[%emt 0:00:07]} 13. Nc4 {[%emt 0:00:01]} O-O {[%emt 0:00:13]} 14. Bd6 {[%emt 0:00:02]} Bxd6 {[%emt 0:00:24]} 15. Nxd6 {[%emt 0:00:01]} Qc7 {[%emt 0:00:03]} 16. Qxb7 {[%emt 0:00:02]} Qxb7 {[%emt 0:00:09]} 17. Nxb7 {[%emt 0:00:02]} Rab8 {[%emt 0:00:53]} 18. Na5 {[%emt 0:00:01]} Rfc8 {[%emt 0:00:02]} 19. Nc4 {[%emt 0:00:10]} Bg6 {[%emt 0:02:20]} 20. Rfe1 {[%emt 0:00:33]} e5 {[%emt 0:01:18]} 21. dxe5 {[%emt 0:00:33]} Nd5 {[%emt 0:00:02]} 22. Nxe4 {[%emt 0:01:33]} Bxe4 {[%emt 0:00:02]} 23. Bxe4 {[%emt 0:00:08]} Nxc5 {[%emt 0:00:03]} 24. Rac1 {[%emt 0:00:55]} Rd8 {[%emt 0:01:06]} 25. Bb1 {[%emt 0:01:36]} Ne6 {[%emt 0:01:16]} 26. b3 {[%emt 0:00:41]} Nd4 {[%emt 0:00:22]} 27. Kg2 {[%emt 0:00:02]} g6 {[%emt 0:00:46]} 28. Nd6 {[%emt 0:01:05]} Rb6 {[%emt 0:00:24]} 29. Re4 {[%emt 0:00:39]} Ne6 {[%emt 0:00:20]} 30. Ra4 {[%emt 0:00:10]} Ra8 {[%emt 0:02:03]} 31. Be4 {[%emt 0:00:46]} Ne7 {[%emt 0:00:01]} 32. Ra5 {[%emt 0:01:04]} Kg7 {[%emt 0:00:51]} 33. Rd1 {[%emt 0:00:52]} Kf8 {[%emt 0:00:26]} 34. h4 {[%emt 0:00:35]} Kg7 {[%emt 0:00:05]} 35. Rc1 {[%emt 0:01:47]} Kf8 {[%emt 0:00:10]} 36. Rc4 {[%emt 0:00:02]} Nc7 {[%emt 0:02:00]} 37. b4 {[%emt 0:00:40]} a6 {[%emt 0:00:57]} 38. a3 {[%emt 0:00:17]} Rd8 {[%emt 0:00:16]} 39. Rc1 {[%emt 0:00:21]} Nb5 {[%emt 0:00:19]} 40. Nc4 {[%emt 0:00:22]} 1-0

[Event "EIRCC 2019"]
[Site "Tallinn"]
[Date "2019.12.05"]
[Round "4.23"]
[White "Kukk, Sander"]
[Black "Ruck, Robert"]
[Result "0-1"]
[ECO "A01"]
[WhiteElo "2313"]
[BlackElo "2551"]
[Annotator "ChessBase"]
[PlyCount "102"]
[EventDate "2019.12.05"]
[EventType "swiss"]
[EventCountry "EST"]
[SourceTitle "playchess.com"]
[Source "ChessBase"]
[SourceQuality "1"]
[TimeControl "900+10"]

1. b3 {[%emt 0:00:00]} Nf6 {[%emt 0:00:00]} 2. Bb2 {[%emt 0:00:00]} g6 {[%emt 0:00:01]} 3. e3 {[%emt 0:00:00]} Bg7 {[%emt 0:00:03]} 4. Nf3 {[%emt 0:00:00]} O-O {[%emt 0:00:03]} 5. d4 {[%emt 0:00:00]} c5 {[%emt 0:00:05]} 6. Nbd2 {[%emt 0:00:01]} cxd4 {[%emt 0:00:08]} 7. Nxd4 {[%emt 0:00:08]} d5 {[%emt 0:00:06]} 8. Be2 {[%emt 0:00:11]} Re8 {[%emt 0:00:07]} 9. O-O {[%emt 0:00:06]} e5 {[%emt 0:00:06]} 10. N4f3 {[%emt 0:00:02]} Nc6 {[%emt 0:00:02]} 11. Re1 {[%emt 0:01:07]} Bf5 {[%emt 0:00:39]} 12. Bb5 {[%emt 0:00:44]} Qc7 {[%emt 0:01:11]} 13. c4 {[%emt 0:00:35]} Rad8 {[%emt 0:03:43]} 14. Rc1 {[%emt 0:02:21]} d4 {[%emt 0:00:14]} 15. exd4 {[%emt 0:01:34]} exd4 {[%emt 0:00:04]} 16. Bxc6 {[%emt 0:00:41]} bxc6 {[%emt 0:00:25]} 17. Nxd4 {[%emt 0:00:20]} Rxe1+ {[%emt 0:00:52]} 18. Qxe1 {[%emt 0:00:02]} Ng4 {[%emt 0:01:00]} 19. N2f3 {[%emt 0:00:45]} Bxd4 {[%emt 0:00:22]} 20. Bxd4 {[%emt 0:00:02]} Rxd4 {[%emt 0:00:06]} 21. h3 {[%emt 0:00:38]} Re4 {[%emt 0:00:07]} 22. Qd2 {[%emt 0:01:23]} Nf6 {[%emt 0:00:46]} 23. Ng5 {[%emt 0:00:25]} Re8 {[%emt 0:00:09]} 24. Qd4 {[%emt 0:00:02]} Ne4 {[%emt 0:00:44]} 25. Nf3 {[%emt 0:00:09]} c5 {[%emt 0:00:50]} 26. Qe3 {[%emt 0:00:14]} Nf6 {[%emt 0:00:35]} 27. Qg5 {[%emt 0:00:19]} Qd6 {[%emt 0:00:08]} 28. a3 {[%emt 0:00:26]} Be4 {[%emt 0:00:19]} 29. Nh2 {[%emt 0:00:30]} Bc6 {[%emt 0:00:17]} 30. b4 {[%emt 0:00:08]} Ne4 {[%emt 0:00:33]} 31. Qe3 {[%emt 0:00:22]} Qd2 {[%emt 0:00:54]} 32. Ng4 {[%emt 0:00:08]} Qxe3 {[%emt 0:00:10]} 33. Nxe3 {[%emt 0:00:01]} a6 {[%emt 0:00:18]} 34. f3 {[%emt 0:00:31]} Nf6 {[%emt 0:00:23]} 35. Kf2 {[%emt 0:00:01]} Rb8 {[%emt 0:00:07]} 36. Rb1 {[%emt 0:00:06]} Kf8 {[%emt 0:00:02]} 37. Nd1 {[%emt 0:00:08]} Nd7 {[%emt 0:00:08]} 38. Nc3 {[%emt 0:00:04]} Rc8 {[%emt 0:01:43]} 39. b5 {[%emt 0:00:23]} Bb7 {[%emt 0:00:02]} 40. f4 {[%emt 0:00:08]} a5 {[%emt 0:00:28]} 41. Rd1 {[%emt 0:00:31]} Nb6 {[%emt 0:00:04]} 42. Rd6 {[%emt 0:00:34]} Nxc4 {[%emt 0:00:04]} 43. Rd7 {[%emt 0:00:01]} Ba8 {[%emt 0:00:10]} 44. Ra7 {[%emt 0:00:05]} Nxa3 {[%emt 0:00:17]} 45. Rxa5 {[%emt 0:00:04]} Nc4 {[%emt 0:00:07]} 46. Ra4 {[%emt 0:00:10]} Nd6 {[%emt 0:00:07]} 47. g4 {[%emt 0:00:11]} Bb7 {[%emt 0:00:13]} 48. Ra7 {[%emt 0:00:42]} Rb8 {[%emt 0:00:30]} 49. Ke3 {[%emt 0:00:12]} Bg2 {[%emt 0:00:05]} 50. Ra2 {[%emt 0:00:28]} Bxh3 {[%emt 0:00:11]} 51. Rd2 {[%emt 0:00:13]} Nc4+ {[%emt 0:00:02] Kd4} 0-1

[Event "EIRCC 2019"]
[Site "Tallinn"]
[Date "2019.12.05"]
[Round "4.24"]
[White "Hjartarson, Johann"]
[Black "Khakimov, Timur"]
[Result "1-0"]
[ECO "A50"]
[WhiteElo "2534"]
[BlackElo "2253"]
[Annotator "ChessBase"]
[PlyCount "119"]
[EventDate "2019.12.05"]
[EventType "swiss"]
[EventCountry "EST"]
[SourceTitle "playchess.com"]
[Source "ChessBase"]
[SourceQuality "1"]
[TimeControl "900+10"]

1. d4 {[%emt 0:00:00]} Nf6 {[%emt 0:00:00]} 2. c4 {[%emt 0:00:00]} Nc6 {[%emt 0:00:00]} 3. Nf3 {[%emt 0:00:08]} e6 {[%emt 0:00:00]} 4. Nc3 {[%emt 0:00:07]} Bb4 {[%emt 0:00:00]} 5. e3 {[%emt 0:00:10]} d5 {[%emt 0:00:13]} 6. Bd2 {[%emt 0:00:15]} O-O {[%emt 0:00:09]} 7. Qc2 {[%emt 0:00:05]} dxc4 {[%emt 0:00:59]} 8. Bxc4 {[%emt 0:00:06]} Qe7 {[%emt 0:00:19]} 9. O-O {[%emt 0:01:12]} e5 {[%emt 0:00:25]} 10. d5 {[%emt 0:00:16]} e4 {[%emt 0:05:36]} 11. Ng5 {[%emt 0:00:42]} Bxc3 {[%emt 0:00:31]} 12. Bxc3 {[%emt 0:01:11]} Nxd5 {[%emt 0:02:09]} 13. Bxd5 {[%emt 0:00:25]} Qxg5 {[%emt 0:00:03]} 14. Bxe4 {[%emt 0:00:04]} Qh6 {[%emt 0:00:48]} 15. b4 {[%emt 0:00:19]} Bg4 {[%emt 0:00:15]} 16. b5 {[%emt 0:00:14]} Nd8 {[%emt 0:00:07]} 17. h3 {[%emt 0:01:13]} Bh5 {[%emt 0:00:06]} 18. Be5 {[%emt 0:01:00]} c6 {[%emt 0:02:21]} 19. bxc6 {[%emt 0:02:53]} Nxc6 {[%emt 0:00:11]} 20. Bf4 {[%emt 0:00:04]} g5 {[%emt 0:00:12]} 21. Bg3 {[%emt 0:00:06]} Bg6 {[%emt 0:00:09]} 22. Rab1 {[%emt 0:00:17]} Bxe4 {[%emt 0:00:21]} 23. Qxe4 {[%emt 0:00:02]} Rae8 {[%emt 0:00:37]} 24. Qg4 {[%emt 0:00:45]} Re7 {[%emt 0:00:39]} 25. h4 {[%emt 0:00:08]} Rd8 {[%emt 0:01:02]} 26. hxg5 {[%emt 0:00:22]} Qe6 {[%emt 0:00:21]} 27. Qxe6 {[%emt 0:00:13]} fxe6 {[%emt 0:00:02]} 28. Rb2 {[%emt 0:00:36]} Rd3 {[%emt 0:00:23]} 29. Rfb1 {[%emt 0:00:14]} b6 {[%emt 0:00:10]} 30. Rc1 {[%emt 0:00:14]} Na5 {[%emt 0:00:05]} 31. Be5 {[%emt 0:00:26]} Red7 {[%emt 0:00:07]} 32. Bd4 {[%emt 0:01:10]} e5 {[%emt 0:00:17]} 33. Rc8+ {[%emt 0:00:26]} Kf7 {[%emt 0:00:02]} 34. Bxe5 {[%emt 0:00:02]} Kg6 {[%emt 0:00:07]} 35. Bd4 {[%emt 0:00:49]} Kxg5 {[%emt 0:00:04]} 36. Rb5+ {[%emt 0:00:06]} Kg6 {[%emt 0:00:05]} 37. g4 {[%emt 0:00:47]} R3xd4 {[%emt 0:00:12]} 38. exd4 {[%emt 0:00:03]} Rxd4 {[%emt 0:00:02]} 39. Rg8+ {[%emt 0:00:19]} Kf7 {[%emt 0:00:08]} 40. Rgg5 {[%emt 0:00:04]} Nc6 {[%emt 0:00:13]} 41. Rbf5+ {[%emt 0:00:25]} Ke6 {[%emt 0:00:07]} 42. Rg7 {[%emt 0:00:06]} Rxg4+ {[%emt 0:00:22]} 43. Rxg4 {[%emt 0:00:03]} Kxf5 {[%emt 0:00:02]} 44. Rg7 {[%emt 0:00:03]} Ke6 {[%emt 0:01:08]} 45. Rxh7 {[%emt 0:00:08]} b5 {[%emt 0:00:03]} 46. Rb7 {[%emt 0:00:28]} b4 {[%emt 0:00:02]} 47. Kf1 {[%emt 0:00:26]} a5 {[%emt 0:00:02]} 48. Ke2 {[%emt 0:00:23]} Kd5 {[%emt 0:00:19]} 49. Kd3 {[%emt 0:00:07]} Ne5+ {[%emt 0:00:03]} 50. Kc2 {[%emt 0:00:03]} Kc4 {[%emt 0:00:34]} 51. f4 {[%emt 0:00:29]} Nf3 {[%emt 0:00:05]} 52. Rc7+ {[%emt 0:00:12]} Kd5 {[%emt 0:00:44]} 53. Kb3 {[%emt 0:00:11]} Ke4 {[%emt 0:00:06]} 54. Rf7 {[%emt 0:00:15]} Nd2+ {[%emt 0:00:13]} 55. Ka4 {[%emt 0:00:03]} Nb1 {[%emt 0:00:07]} 56. Kxa5 {[%emt 0:00:19]} Nc3 {[%emt 0:00:05]} 57. Kxb4 {[%emt 0:00:09]} Nxa2+ {[%emt 0:00:02]} 58. Kc4 {[%emt 0:00:02]} Nc1 {[%emt 0:00:07]} 59. Re7+ {[%emt 0:00:06]} Kxf4 {[%emt 0:00:02]} 60. Re1 {[%emt 0:00:02] Ke5 Kd5+ Kxd5} 1-0

[Event "EIRCC 2019"]
[Site "Tallinn"]
[Date "2019.12.05"]
[Round "4.25"]
[White "Cherepov, Alexej"]
[Black "Stocek, Jiri"]
[Result "1/2-1/2"]
[ECO "A40"]
[WhiteElo "2165"]
[BlackElo "2532"]
[Annotator "ChessBase"]
[PlyCount "98"]
[EventDate "2019.12.05"]
[EventType "swiss"]
[EventCountry "EST"]
[SourceTitle "playchess.com"]
[Source "ChessBase"]
[SourceQuality "1"]
[TimeControl "900+10"]

1. d4 {[%emt 0:00:00]} Nf6 {[%emt 0:00:00]} 2. c4 {[%emt 0:00:00]} e6 {[%emt 0:00:00]} 3. g3 {[%emt 0:00:00]} c5 {[%emt 0:00:01]} 4. Nf3 {[%emt 0:00:01]} cxd4 {[%emt 0:00:29]} 5. Nxd4 {[%emt 0:00:02]} Qa5+ {[%emt 0:00:04]} 6. Nc3 {[%emt 0:00:20]} Ne4 {[%emt 0:00:21]} 7. Qd3 {[%emt 0:00:06]} Nxc3 {[%emt 0:00:14]} 8. Bd2 {[%emt 0:00:50]} Nc6 {[%emt 0:00:59]} 9. Bxc3 {[%emt 0:01:17]} Bb4 {[%emt 0:00:12]} 10. Nb5 {[%emt 0:01:26]} Bxc3+ {[%emt 0:00:35]} 11. Qxc3 {[%emt 0:00:28]} Qxc3+ {[%emt 0:00:38]} 12. Nxc3 {[%emt 0:00:14]} Ke7 {[%emt 0:00:06]} 13. Bg2 {[%emt 0:00:11]} Rd8 {[%emt 0:00:17]} 14. O-O-O {[%emt 0:00:11]} Rb8 {[%emt 0:01:01]} 15. Rd2 {[%emt 0:00:19]} Na5 {[%emt 0:00:22]} 16. b3 {[%emt 0:00:38]} a6 {[%emt 0:00:15]} 17. c5 {[%emt 0:01:29]} b6 {[%emt 0:00:47]} 18. cxb6 {[%emt 0:00:08]} Rxb6 {[%emt 0:00:13]} 19. Na4 {[%emt 0:00:57]} Rb4 {[%emt 0:02:03]} 20. Rhd1 {[%emt 0:00:25]} d5 {[%emt 0:00:08]} 21. Rc2 {[%emt 0:00:36]} f5 {[%emt 0:04:56]} 22. Rc7+ {[%emt 0:00:50]} Bd7 {[%emt 0:00:06]} 23. Nc5 {[%emt 0:01:04]} Kd6 {[%emt 0:00:17]} 24. Rxd7+ {[%emt 0:00:08]} Rxd7 {[%emt 0:00:02]} 25. Nxd7 {[%emt 0:00:01]} Kxd7 {[%emt 0:00:15]} 26. Bxd5 {[%emt 0:00:06]} Ke7 {[%emt 0:00:08]} 27. Bg2 {[%emt 0:00:23]} Nb7 {[%emt 0:00:36]} 28. Bxb7 {[%emt 0:00:43]} Rxb7 {[%emt 0:00:01]} 29. Kb2 {[%emt 0:00:09]} g5 {[%emt 0:00:17]} 30. Rd4 {[%emt 0:00:09]} h5 {[%emt 0:00:10]} 31. h4 {[%emt 0:00:06]} g4 {[%emt 0:00:21]} 32. e4 {[%emt 0:01:52]} e5 {[%emt 0:00:28]} 33. Ra4 {[%emt 0:00:20]} Rb6 {[%emt 0:00:02]} 34. exf5 {[%emt 0:00:22]} Kf6 {[%emt 0:00:02]} 35. Rc4 {[%emt 0:01:03]} Kxf5 {[%emt 0:00:08]} 36. Kc3 {[%emt 0:00:19]} Rd6 {[%emt 0:00:18]} 37. Kc2 {[%emt 0:00:24]} Kg6 {[%emt 0:00:59]} 38. Kb2 {[%emt 0:01:47]} Kf5 {[%emt 0:00:38]} 39. Kc2 {[%emt 0:00:41]} Kg6 {[%emt 0:00:03]} 40. Kb2 {[%emt 0:00:21]} Kf5 {[%emt 0:00:01]} 41. b4 {[%emt 0:00:31]} Rd2+ {[%emt 0:00:18]} 42. Rc2 {[%emt 0:00:02]} Rd3 {[%emt 0:00:01]} 43. Rc3 {[%emt 0:00:11]} Rd2+ {[%emt 0:00:20]} 44. Rc2 {[%emt 0:00:02]} Rd3 {[%emt 0:00:00]} 45. a4 {[%emt 0:00:29]} Ke4 {[%emt 0:00:03]} 46. Rc3 {[%emt 0:00:09]} Rd2+ {[%emt 0:00:12]} 47. Rc2 {[%emt 0:00:01]} Rd3 {[%emt 0:00:06]} 48. Rc3 {[%emt 0:00:13]} Rd2+ {[%emt 0:00:02]} 49. Rc2 {[%emt 0:00:01]} Rd3 {[%emt 0:00:07]} 1/2-1/2

[Event "EIRCC 2019"]
[Site "Tallinn"]
[Date "2019.12.05"]
[Round "4.26"]
[White "Lobanov, Sergei"]
[Black "Shapiro, Viktor"]
[Result "1-0"]
[ECO "B05"]
[WhiteElo "2483"]
[BlackElo "2231"]
[Annotator "ChessBase"]
[PlyCount "125"]
[EventDate "2019.12.05"]
[EventType "swiss"]
[EventCountry "EST"]
[SourceTitle "playchess.com"]
[Source "ChessBase"]
[SourceQuality "1"]
[TimeControl "900+10"]

1. e4 {[%emt 0:00:00]} Nf6 {[%emt 0:00:00]} 2. e5 {[%emt 0:00:00]} Nd5 {[%emt 0:00:00]} 3. d4 {[%emt 0:00:00]} d6 {[%emt 0:00:00]} 4. Nf3 {[%emt 0:00:00]} Bg4 {[%emt 0:00:00]} 5. Be2 {[%emt 0:00:00]} e6 {[%emt 0:00:00]} 6. O-O {[%emt 0:00:03]} Be7 {[%emt 0:00:00]} 7. c4 {[%emt 0:00:07]} Nb6 {[%emt 0:00:00]} 8. Nc3 {[%emt 0:00:43]} O-O {[%emt 0:00:03]} 9. Be3 {[%emt 0:00:12]} Nc6 {[%emt 0:00:03]} 10. exd6 {[%emt 0:00:44]} cxd6 {[%emt 0:00:01]} 11. d5 {[%emt 0:00:06]} exd5 {[%emt 0:00:18]} 12. Nxd5 {[%emt 0:01:41]} Nxd5 {[%emt 0:00:02]} 13. Qxd5 {[%emt 0:00:14]} Be6 {[%emt 0:00:04]} 14. Qb5 {[%emt 0:00:25]} a6 {[%emt 0:01:04]} 15. Qxb7 {[%emt 0:01:12]} Na5 {[%emt 0:00:01]} 16. Qb4 {[%emt 0:01:14]} Nxc4 {[%emt 0:02:08]} 17. Bd4 {[%emt 0:01:19]} Ne5 {[%emt 0:04:09]} 18. Bc3 {[%emt 0:04:31]} a5 {[%emt 0:01:31]} 19. Qe4 {[%emt 0:00:34]} Nxf3+ {[%emt 0:01:04]} 20. Bxf3 {[%emt 0:00:04]} d5 {[%emt 0:00:15]} 21. Qd3 {[%emt 0:00:49]} Qb6 {[%emt 0:00:27]} 22. Rfd1 {[%emt 0:00:31]} Rfd8 {[%emt 0:00:05]} 23. Rac1 {[%emt 0:00:28]} Bc5 {[%emt 0:00:10]} 24. Bd4 {[%emt 0:02:13]} Bxd4 {[%emt 0:01:07]} 25. Qxd4 {[%emt 0:00:01]} Qxd4 {[%emt 0:00:02]} 26. Rxd4 {[%emt 0:00:01]} Rac8 {[%emt 0:00:20]} 27. Rxc8 {[%emt 0:00:15]} Rxc8 {[%emt 0:00:01]} 28. Kf1 {[%emt 0:00:07]} Kf8 {[%emt 0:00:42]} 29. Ke2 {[%emt 0:00:21]} Ke7 {[%emt 0:00:19]} 30. Kd2 {[%emt 0:00:33]} Kd6 {[%emt 0:00:03]} 31. Be2 {[%emt 0:00:25]} g5 {[%emt 0:00:25]} 32. Ra4 {[%emt 0:00:06]} Rc5 {[%emt 0:00:01]} 33. Bd3 {[%emt 0:00:08]} h6 {[%emt 0:00:44]} 34. g3 {[%emt 0:00:22]} g4 {[%emt 0:00:30]} 35. b4 {[%emt 0:00:42]} axb4 {[%emt 0:00:03]} 36. Rxb4 {[%emt 0:00:00]} Ke5 {[%emt 0:01:26]} 37. a4 {[%emt 0:00:15]} d4 {[%emt 0:00:23]} 38. Rb5 {[%emt 0:00:11]} Kd6 {[%emt 0:00:01]} 39. Rxc5 {[%emt 0:00:14]} Kxc5 {[%emt 0:00:01]} 40. a5 {[%emt 0:00:01]} Bd5 {[%emt 0:00:33]} 41. Bf5 {[%emt 0:00:24]} Be6 {[%emt 0:00:28]} 42. Bd3 {[%emt 0:00:18]} Bd5 {[%emt 0:00:05]} 43. Kc2 {[%emt 0:00:06]} Kb4 {[%emt 0:00:12]} 44. a6 {[%emt 0:00:01]} Ka5 {[%emt 0:00:03]} 45. Kd2 {[%emt 0:00:15]} Kb6 {[%emt 0:00:04]} 46. Be2 {[%emt 0:00:04]} Be4 {[%emt 0:00:04]} 47. Bd3 {[%emt 0:00:12]} f5 48. Bc4 {[%emt 0:00:13]} Ka7 {[%emt 0:00:06]} 49. Kc1 {[%emt 0:00:06]} Kb6 {[%emt 0:00:01]} 50. Kd2 {[%emt 0:00:08]} Ka7 {[%emt 0:00:02]} 51. Bf1 {[%emt 0:00:04]} Kb6 {[%emt 0:00:01]} 52. Kc1 {[%emt 0:00:02]} Ka7 {[%emt 0:00:01]} 53. Kb2 {[%emt 0:00:04]} Kb6 {[%emt 0:00:00]} 54. Kb3 {[%emt 0:00:04]} Kc5 {[%emt 0:00:01]} 55. Bc4 {[%emt 0:00:36]} Bc6 {[%emt 0:00:33]} 56. Bd3 {[%emt 0:00:19]} Bd5+ {[%emt 0:00:31]} 57. Ka4 {[%emt 0:00:01]} Kb6 {[%emt 0:01:25]} 58. Kb4 {[%emt 0:00:01]} Be4 {[%emt 0:00:04]} 59. Kc4 {[%emt 0:00:14]} Bxd3+ {[%emt 0:01:35]} 60. Kxd3 {[%emt 0:00:01]} Kxa6 61. Kxd4 {[%emt 0:00:01]} f4 {[%emt 0:00:01]} 62. gxf4 {[%emt 0:00:00]} Kb5 63. Ke4 1-0